bitfinex/quotes_BTCUSD_20250226
["timestamp","ask_amount","ask_price","bid_price","bid_amount"]
[1740563360486,0.01756878,89284.0,89283.0,0.128125]
[1740563360686,0.168,89286.0,89285.0,0.048325]
[1740563361855,0.168,89286.0,89285.0,0.052325]
[1740563362613,0.168,89286.0,89285.0,0.055325]
[1740563364095,0.18556798,89286.0,89285.0,0.055325]
[1740563365667,0.01756798,89286.0,89285.0,0.223326]
[1740563366076,0.01756798,89286.0,89285.0,0.055325]
[1740563366685,0.01756798,89286.0,89285.0,0.223326]
[1740563367768,0.01756798,89286.0,89285.0,0.347326]
[1740563371411,0.000424,89291.0,89285.0,0.179325]
[1740563371590,0.000424,89291.0,89290.0,0.167991]
[1740563371900,0.000424,89291.0,89290.0,0.216316]
[1740563372967,0.000424,89291.0,89290.0,0.295016]
[1740563373194,0.000424,89291.0,89290.0,0.129025]
[1740563373403,0.000424,89291.0,89290.0,0.297016]
[1740563373755,0.000424,89291.0,89290.0,0.298016]
[1740563373915,0.000424,89291.0,89290.0,0.130025]
[1740563375449,0.168414,89291.0,89290.0,0.130025]
[1740563375659,0.000424,89291.0,89290.0,0.130025]
[1740563377107,0.168414,89291.0,89290.0,0.130025]
[1740563377673,0.000424,89291.0,89290.0,0.130025]
[1740563378370,0.01799065,89291.0,89290.0,0.130025]
[1740563379131,0.18598065,89291.0,89290.0,0.130025]
[1740563380286,0.01799065,89291.0,89290.0,0.130025]
[1740563380990,0.01799065,89291.0,89290.0,0.298016]
[1740563381399,0.000424,89291.0,89290.0,0.298016]
[1740563383606,0.000424,89291.0,89290.0,0.343916]
[1740563384444,0.000424,89291.0,89290.0,0.175925]
[1740563385658,0.01799013,89291.0,89290.0,0.175925]
[1740563391427,0.000424,89291.0,89290.0,0.175925]
[1740563392132,0.000424,89291.0,89290.0,0.343916]
[1740563395481,0.000424,89291.0,89290.0,0.70677484]
[1740563395688,0.01798939,89291.0,89290.0,0.70677484]
[1740563395920,0.01798939,89291.0,89290.0,0.70477484]
[1740563396362,0.01798939,89291.0,89290.0,0.70777484]
[1740563396543,0.01798939,89291.0,89290.0,0.70377484]
[1740563396744,0.01798939,89291.0,89290.0,0.70577484]
[1740563397243,0.01798939,89291.0,89290.0,0.70377484]
[1740563397647,0.01798939,89291.0,89290.0,0.70677484]
[1740563398031,0.01798939,89291.0,89290.0,0.71077484]
[1740563398437,0.01798939,89291.0,89290.0,0.70677484]
[1740563398636,0.01798939,89291.0,89290.0,0.71377484]
[1740563399530,0.01798939,89291.0,89290.0,0.71077484]
[1740563399935,0.01898939,89291.0,89290.0,0.71777484]
[1740563401303,0.001424,89291.0,89290.0,0.71777484]
[1740563403307,0.001424,89291.0,89290.0,0.679976]
[1740563403651,0.001424,89291.0,89290.0,0.71864812]
[1740563405222,0.001424,89291.0,89290.0,0.679976]
[1740563405950,0.001424,89291.0,89290.0,0.80826438]
[1740563407550,0.001424,89291.0,89290.0,1.14723871]
[1740563407685,0.01756318,89309.0,89299.0,0.167975]
[1740563407884,0.01756318,89309.0,89299.0,1.33602189]
[1740563408085,0.01756318,89309.0,89299.0,1.33445454]
[1740563408790,0.01756318,89309.0,89299.0,1.33345454]
[1740563408991,0.01756318,89309.0,89299.0,1.33349632]
[1740563409200,0.01756318,89309.0,89299.0,1.33849632]
[1740563409650,0.01756318,89309.0,89299.0,1.33349632]
[1740563410096,0.01756318,89309.0,89299.0,1.34049632]
[1740563410471,0.0004242,89313.0,89299.0,1.34049632]
[1740563410613,0.0004242,89313.0,89299.0,1.64049632]
[1740563411039,0.0004242,89313.0,89299.0,1.64749632]
[1740563411718,8.674e-05,89300.0,89299.0,1.64749632]
[1740563412129,0.3,89355.0,89337.0,0.048325]
[1740563412283,0.3,89341.0,89337.0,0.048325]
[1740563412685,0.167901,89339.0,89337.0,0.048325]
[1740563412885,0.3,89340.0,89337.0,0.048325]
[1740563413110,0.33872475,89340.0,89337.0,0.048325]
[1740563413424,0.167901,89338.0,89337.0,0.04936678]
[1740563413848,0.167901,89338.0,89337.0,0.04836678]
[1740563415049,0.18546005,89338.0,89337.0,0.04836678]
[1740563421458,0.167901,89338.0,89337.0,0.04836678]
[1740563423147,0.167901,89338.0,89337.0,4.178e-05]
[1740563423334,0.167901,89338.0,89337.0,0.04836678]
[1740563425168,0.167901,89338.0,89337.0,4.178e-05]
[1740563425346,0.167901,89338.0,89337.0,0.04836678]
[1740563426113,0.18546038,89338.0,89337.0,0.04836678]
[1740563427361,0.18546038,89338.0,89337.0,0.04921438]
[1740563427715,0.01755938,89338.0,89337.0,0.04921438]
[1740563428268,0.18546038,89338.0,89337.0,0.04921438]
[1740563430935,0.167901,89338.0,89337.0,0.04921438]
[1740563435370,0.18546067,89338.0,89337.0,0.04921438]
[1740563438326,0.01755967,89338.0,89337.0,0.04921438]
[1740563438537,0.18546067,89338.0,89337.0,0.04921438]
[1740563439082,0.18588457,89338.0,89337.0,0.04921438]
[1740563439579,0.01798357,89338.0,89337.0,0.04921438]
[1740563440575,0.18588457,89338.0,89337.0,0.04921438]
[1740563440776,0.01798357,89338.0,89337.0,0.04921438]
[1740563441015,0.18588457,89338.0,89337.0,0.04921438]
[1740563441458,0.1683249,89338.0,89337.0,0.04921438]
[1740563443083,0.0004239,89338.0,89337.0,0.21711738]
[1740563443291,0.0004239,89338.0,89337.0,0.34021738]
[1740563444582,0.0004239,89338.0,89337.0,0.34521738]
[1740563445378,0.0004239,89338.0,89337.0,0.34921738]
[1740563446142,0.0179846,89338.0,89337.0,0.34921738]
[1740563450415,0.0179846,89338.0,89337.0,0.67427738]
[1740563450992,0.0004239,89338.0,89337.0,0.67427738]
[1740563451542,0.0004239,89338.0,89337.0,0.67027738]
[1740563451700,0.0004239,89338.0,89337.0,0.67227738]
[1740563452104,0.0004239,89338.0,89337.0,0.67927738]
[1740563453538,0.0004239,89338.0,89337.0,0.63095238]
[1740563454427,0.0004239,89338.0,89337.0,0.65095238]
[1740563455435,0.01798252,89338.0,89337.0,0.65095238]
[1740563458943,0.01798252,89338.0,89337.0,0.46304938]
[1740563459156,0.01798252,89338.0,89337.0,0.35994938]
[1740563459157,0.18588352,89338.0,89337.0,0.35994938]
[1740563460350,0.18588352,89338.0,89337.0,0.35294938]
[1740563460731,0.18588352,89338.0,89337.0,0.34594938]
[1740563460935,0.18588352,89338.0,89337.0,0.02088938]
[1740563461136,0.18588352,89338.0,89337.0,0.02488938]
[1740563461339,0.1683249,89338.0,89337.0,0.02988938]
[1740563465952,0.18588582,89338.0,89337.0,0.02988938]
[1740563466538,0.01798482,89338.0,89337.0,0.02988938]
[1740563466745,0.18588582,89338.0,89337.0,0.02988938]
[1740563471125,0.0004239,89338.0,89337.0,0.11118938]
[1740563471910,0.0004239,89338.0,89337.0,0.10718938]
[1740563472510,0.3,89346.0,89337.0,0.10718938]
[1740563472640,0.167888,89345.0,89344.0,0.02]
[1740563474075,0.167888,89345.0,89344.0,0.023]
[1740563474272,0.167888,89345.0,89344.0,0.025]
[1740563475758,0.1854481,89345.0,89344.0,0.025]
[1740563478868,0.0175601,89345.0,89344.0,0.31829]
[1740563479404,0.0175601,89345.0,89344.0,0.1504]
[1740563480047,0.1854481,89345.0,89344.0,0.1504]
[1740563480806,0.0175601,89345.0,89344.0,0.1504]
[1740563481353,0.223842,89349.0,89344.0,0.1504]
[1740563481571,0.167878,89351.0,89348.0,0.02]
[1740563481732,0.3,89350.0,89348.0,0.02]
[1740563481936,0.167881,89349.0,89348.0,0.02]
[1740563483608,0.167886,89346.0,89345.0,0.02]
[1740563483811,0.223845,89348.0,89344.0,0.1454]
[1740563484234,0.167886,89346.0,89345.0,0.02]
[1740563485656,0.223845,89348.0,89345.0,0.023]
[1740563485880,0.167885,89347.0,89345.0,0.023]
[1740563486085,0.0175594,89346.0,89345.0,0.023]
[1740563486289,0.1854454,89346.0,89345.0,0.023]
[1740563486930,0.1854454,89346.0,89345.0,0.02]
[1740563487076,0.1854454,89346.0,89345.0,0.023]
[1740563487476,0.1854454,89346.0,89345.0,0.021]
[1740563487699,0.1854454,89346.0,89345.0,0.024]
[1740563488060,0.1854454,89346.0,89345.0,0.023]
[1740563488278,0.1854454,89346.0,89345.0,0.025]
[1740563490233,0.0175594,89346.0,89345.0,0.025]
[1740563490904,0.1854454,89346.0,89345.0,0.025]
[1740563491101,0.0175594,89346.0,89345.0,0.025]
[1740563491402,0.167885,89347.0,89345.0,0.025]
[1740563491635,0.391727,89348.0,89347.0,0.02]
[1740563492225,0.167883,89348.0,89347.0,0.02]
[1740563492416,0.4683058,89349.0,89348.0,0.02]
[1740563492620,0.3004238,89349.0,89348.0,0.02]
[1740563493668,0.4683048,89349.0,89348.0,0.02]
[1740563493868,0.3004238,89349.0,89348.0,0.02]
[1740563494622,0.3004238,89349.0,89346.0,0.02]
[1740563494833,0.0004238,89349.0,89348.0,0.022]
[1740563495007,0.0004238,89349.0,89348.0,0.023]
[1740563495522,0.4683048,89349.0,89348.0,0.02]
[1740563495853,0.31798277,89349.0,89348.0,0.02]
[1740563496059,0.48586377,89349.0,89348.0,0.02]
[1740563497336,0.48586377,89349.0,89348.0,0.022]
[1740563497545,0.48586377,89349.0,89348.0,0.023]
[1740563497753,0.31798277,89349.0,89348.0,0.023]
[1740563498104,0.31798277,89349.0,89348.0,0.02]
[1740563498485,0.31798277,89349.0,89348.0,0.022]
[1740563498696,0.31798277,89349.0,89348.0,0.189882]
[1740563499063,0.31798277,89349.0,89348.0,0.191882]
[1740563499291,0.31798277,89349.0,89348.0,0.025]
[1740563500405,0.31798277,89349.0,89348.0,0.192882]
[1740563501444,0.3004238,89349.0,89348.0,0.192882]
[1740563501857,0.3004238,89349.0,89348.0,0.025]
[1740563502561,0.0004238,89349.0,89348.0,0.025]
[1740563503123,0.0004238,89349.0,89348.0,0.1074]
[1740563504444,0.01798216,89349.0,89348.0,0.1074]
[1740563504656,0.01798216,89349.0,89348.0,0.275282]
[1740563505061,0.01798216,89349.0,89348.0,0.1074]
[1740563505466,0.0004238,89349.0,89348.0,0.1074]
[1740563506784,0.0004238,89349.0,89348.0,0.275282]
[1740563507116,0.49191106,89355.0,89354.0,0.02]
[1740563508056,0.19191106,89355.0,89354.0,0.02]
[1740563508477,0.20946918,89355.0,89354.0,0.02]
[1740563509652,0.29564264,89356.0,89354.0,0.02]
[1740563509793,0.167869,89355.0,89354.0,0.02]
[1740563509995,0.18542699,89355.0,89354.0,0.02]
[1740563511396,0.18542699,89355.0,89354.0,0.022]
[1740563511595,0.18585079,89355.0,89354.0,0.022]
[1740563512020,0.18585079,89355.0,89354.0,0.023]
[1740563512829,0.1682928,89355.0,89354.0,0.023]
[1740563515294,0.1682928,89355.0,89354.0,0.0993]
[1740563516470,0.4682928,89355.0,89354.0,0.0993]
[1740563517251,0.48585079,89355.0,89354.0,0.0993]
[1740563517468,0.01798179,89355.0,89354.0,0.0993]
[1740563518058,0.18585079,89355.0,89354.0,0.0993]
[1740563520013,0.01798179,89355.0,89354.0,0.0993]
[1740563520139,0.01798179,89355.0,89354.0,0.313271]
[1740563521200,0.01798179,89355.0,89354.0,0.1454]
[1740563521377,0.0004238,89355.0,89354.0,0.1454]
[1740563521732,0.0004238,89355.0,89354.0,0.313271]
[1740563522460,0.0004238,89355.0,89354.0,0.1454]
[1740563522650,0.0004238,89355.0,89354.0,0.313271]
[1740563522995,0.0004238,89355.0,89354.0,0.1454]
[1740563523312,0.0004238,89355.0,89354.0,0.313271]
[1740563523634,0.0004238,89355.0,89354.0,0.1454]
[1740563523992,0.0004238,89355.0,89354.0,0.313271]
[1740563524215,0.0004238,89355.0,89354.0,0.1454]
[1740563524822,0.0004238,89355.0,89354.0,0.313271]
[1740563525181,0.0004238,89355.0,89354.0,0.1454]
[1740563525659,0.0004238,89355.0,89354.0,0.313271]
[1740563528460,0.01798058,89355.0,89354.0,0.313271]
[1740563529894,0.01798058,89355.0,89354.0,0.1454]
[1740563531402,0.0004238,89355.0,89354.0,0.1454]
[1740563532886,0.0004238,89355.0,89354.0,0.313271]
[1740563535455,0.0004238,89355.0,89354.0,0.3141192]
[1740563535635,0.01798038,89355.0,89354.0,0.3141192]
[1740563538687,0.01798038,89355.0,89354.0,0.3131192]
[1740563539059,0.01798038,89355.0,89354.0,0.3151192]
[1740563540168,0.01798038,89355.0,89354.0,0.3131192]
[1740563540347,0.01798038,89355.0,89354.0,0.3161192]
[1740563541308,0.0004238,89355.0,89354.0,0.6411792]
[1740563541502,0.0004238,89355.0,89354.0,0.6361792]
[1740563541713,0.0004238,89355.0,89354.0,0.6381792]
[1740563542226,0.0004238,89355.0,89354.0,0.6421792]
[1740563542607,0.0004238,89355.0,89354.0,0.6481792]
[1740563544720,0.2932,89378.0,89377.0,0.103]
[1740563544940,0.167826,89378.0,89377.0,0.103]
[1740563545321,0.22376,89382.0,89377.0,0.103]
[1740563545545,0.17628407,89385.0,89377.0,0.270827]
[1740563545721,0.05620457,89381.0,89377.0,0.103]
[1740563545949,0.05662306,89381.0,89377.0,0.103]
[1740563546278,0.05662306,89381.0,89377.0,0.270828]
[1740563546454,0.05662306,89381.0,89378.0,0.167824]
[1740563546655,0.05662306,89381.0,89380.0,0.187822]
[1740563547119,0.05662306,89381.0,89380.0,0.02]
[1740563547332,0.05762306,89381.0,89380.0,0.02]
[1740563547673,0.05662306,89381.0,89380.0,0.02]
[1740563547880,0.05662306,89381.0,89380.0,0.022]
[1740563548283,0.05662306,89381.0,89380.0,0.02]
[1740563548485,0.05662306,89381.0,89380.0,0.022]
[1740563548845,0.05662306,89381.0,89380.0,0.023]
[1740563551341,0.03906921,89381.0,89380.0,0.023]
[1740563551575,0.03906921,89381.0,89380.0,0.190822]
[1740563552140,0.03906921,89381.0,89380.0,0.266922]
[1740563552951,0.03906921,89381.0,89380.0,0.265922]
[1740563553198,0.03906921,89381.0,89380.0,0.272922]
[1740563553458,0.03906921,89381.0,89380.0,0.270922]
[1740563553674,0.03906921,89381.0,89380.0,0.277922]
[1740563553830,0.167796,89394.0,89388.0,0.02]
[1740563554010,0.167798,89393.0,89388.0,0.02004178]
[1740563554209,0.223726,89395.0,89388.0,0.02004178]
[1740563554407,0.01755216,89392.0,89388.0,0.06774178]
[1740563554795,0.01755216,89392.0,89391.0,0.02]
[1740563555000,0.01755216,89392.0,89391.0,0.1001]
[1740563555662,0.01755216,89392.0,89391.0,0.267902]
[1740563557139,0.01755216,89392.0,89391.0,0.313302]
[1740563557337,0.01755216,89392.0,89391.0,0.317302]
[1740563557748,0.01755216,89392.0,89391.0,0.319302]
[1740563558245,0.01755216,89392.0,89391.0,0.317302]
[1740563558451,0.01755216,89392.0,89391.0,0.320302]
[1740563559074,0.01755216,89392.0,89391.0,0.642362]
[1740563559478,0.01755216,89392.0,89391.0,0.647362]
[1740563560201,0.01797616,89392.0,89391.0,0.643362]
[1740563560512,0.01797616,89392.0,89391.0,0.649362]
[1740563561297,0.000424,89392.0,89391.0,0.649362]
[1740563562378,0.000424,89392.0,89391.0,0.644362]
[1740563562788,0.000424,89392.0,89391.0,0.650362]
[1740563562978,0.000424,89392.0,89388.0,0.22378478]
[1740563562979,0.467805,89389.0,89388.0,4.178e-05]
[1740563563200,0.52902055,89389.0,89388.0,4.178e-05]
[1740563563408,0.47635772,89389.0,89388.0,4.178e-05]
[1740563563630,0.30855272,89389.0,89388.0,4.178e-05]
[1740563563828,0.47635772,89389.0,89388.0,4.178e-05]
[1740563564302,0.47635772,89389.0,89388.0,0.00304178]
[1740563564505,0.4939098,89389.0,89388.0,0.00304178]
[1740563564912,0.4939098,89389.0,89388.0,4.178e-05]
[1740563565569,0.60776676,89389.0,89388.0,4.178e-05]
[1740563565953,0.4939098,89389.0,89388.0,4.178e-05]
[1740563566170,0.4969098,89389.0,89388.0,4.178e-05]
[1740563566505,0.4939098,89389.0,89388.0,4.178e-05]
[1740563566711,0.4969098,89389.0,89388.0,4.178e-05]
[1740563567548,0.5009098,89389.0,89388.0,4.178e-05]
[1740563567758,0.4979098,89389.0,89388.0,4.178e-05]
[1740563567972,0.5009098,89389.0,89388.0,4.178e-05]
[1740563568192,0.4969098,89389.0,89388.0,4.178e-05]
[1740563568368,0.5009098,89389.0,89388.0,4.178e-05]
[1740563568987,0.51873206,89389.0,89388.0,4.178e-05]
[1740563569189,0.5009098,89389.0,89388.0,4.178e-05]
[1740563569562,0.4979098,89389.0,89388.0,4.178e-05]
[1740563569759,0.4999098,89389.0,89388.0,4.178e-05]
[1740563570543,0.4979098,89389.0,89388.0,4.178e-05]
[1740563570788,0.4939098,89389.0,89388.0,4.178e-05]
[1740563570962,0.60976676,89389.0,89388.0,4.178e-05]
[1740563571161,0.60776676,89389.0,89388.0,4.178e-05]
[1740563571460,0.59421468,89389.0,89388.0,4.178e-05]
[1740563571839,0.48035772,89389.0,89388.0,4.178e-05]
[1740563572063,0.47635772,89389.0,89388.0,0.00088958]
[1740563572404,0.48335772,89389.0,89388.0,0.00088958]
[1740563574662,0.50090981,89389.0,89388.0,0.00088958]
[1740563580310,0.02455209,89389.0,89388.0,0.07958958]
[1740563580512,0.003,89389.0,89388.0,0.07958958]
[1740563580810,0.0004239,89391.0,89388.0,0.07958958]
[1740563580983,0.004,89389.0,89388.0,0.07958958]
[1740563581389,0.171805,89389.0,89388.0,0.07958958]
[1740563582190,0.170805,89389.0,89388.0,0.07958958]
[1740563582399,0.25984748,89389.0,89388.0,0.00088958]
[1740563582610,0.25684748,89389.0,89388.0,0.00088958]
[1740563582773,0.25684748,89389.0,89388.0,0.00188958]
[1740563583012,0.167805,89389.0,89388.0,0.00188958]
[1740563583159,0.16771088,89389.0,89388.0,0.00188958]
[1740563583495,0.16771088,89389.0,89388.0,0.00088958]
[1740563583864,0.16771088,89389.0,89388.0,0.00188958]
[1740563584058,0.16771088,89389.0,89388.0,0.00088958]
[1740563585091,0.18526214,89389.0,89388.0,0.00088958]
[1740563585620,0.18526214,89389.0,89388.0,0.00188958]
[1740563585980,0.18526214,89389.0,89388.0,0.00088958]
[1740563586246,0.18526214,89389.0,89388.0,0.00188958]
[1740563587718,0.1328569,89391.0,89388.0,0.00188958]
[1740563587927,0.3,89390.0,89388.0,0.00188958]
[1740563588130,0.167805,89389.0,89388.0,0.00188958]
[1740563591337,0.18535629,89389.0,89388.0,0.00188958]
[1740563591952,0.17655131,89389.0,89388.0,0.00110117]
[1740563592517,0.15900002,89389.0,89388.0,0.00110117]
[1740563594119,0.45900002,89389.0,89388.0,0.00110117]
[1740563595611,0.45900002,89389.0,89388.0,0.00010117]
[1740563595820,0.45900002,89389.0,89388.0,0.00110117]
[1740563595996,0.3,89389.0,89388.0,0.00110117]
[1740563596780,0.3,89389.0,89388.0,0.07950117]
[1740563596992,0.28980773,89389.0,89388.0,0.24730817]
[1740563597232,0.02,89416.0,89388.0,0.24730817]
[1740563597233,0.00846879,89461.0,89422.0,0.167743]
[1740563597445,0.00843007,89467.0,89422.0,1.64346895]
[1740563597642,0.000424,89479.0,89422.0,1.51814464]
[1740563597643,0.10635408,89423.0,89422.0,1.51814464]
[1740563597853,0.10050391,89423.0,89422.0,1.51814464]
[1740563598063,0.10050391,89423.0,89422.0,1.55176264]
[1740563598266,0.10050391,89423.0,89422.0,1.25176264]
[1740563598465,0.10050391,89423.0,89422.0,1.3195857]
[1740563598875,0.10050391,89423.0,89422.0,0.62827316]
[1740563598876,0.10150391,89423.0,89422.0,0.62827316]
[1740563599081,0.10150391,89423.0,89422.0,0.63527316]
[1740563599286,0.02340391,89423.0,89422.0,0.62827316]
[1740563599498,0.02340391,89423.0,89422.0,0.74902069]
[1740563599499,0.00100091,89423.0,89422.0,0.74902069]
[1740563599739,9.1e-07,89423.0,89422.0,0.74902069]
[1740563599955,9.1e-07,89423.0,89422.0,1.06356154]
[1740563601816,7.1e-07,89439.0,89438.0,0.18225385]
[1740563602015,7.1e-07,89439.0,89438.0,1.33249924]
[1740563602221,7.1e-07,89439.0,89438.0,1.63093458]
[1740563602621,7.1e-07,89439.0,89438.0,1.65541658]
[1740563603019,7.1e-07,89439.0,89438.0,1.66241658]
[1740563603414,7.1e-07,89439.0,89438.0,1.65093458]
[1740563603615,7.1e-07,89439.0,89438.0,1.65793458]
[1740563603825,0.0004241,89471.0,89445.0,0.28034085]
[1740563604031,0.0004241,89471.0,89445.0,1.26559454]
[1740563604651,1e-07,89446.0,89445.0,1.31469454]
[1740563604849,0.0004241,89471.0,89470.0,0.167653]
[1740563605051,0.0004241,89471.0,89470.0,0.569113]
[1740563605251,0.0004241,89471.0,89470.0,0.618213]
[1740563605838,0.0004241,89471.0,89470.0,0.61742715]
[1740563606044,0.00084314,89471.0,89470.0,0.74492969]
[1740563606270,0.00084314,89471.0,89470.0,0.75192969]
[1740563606444,0.00084314,89471.0,89470.0,0.72902149]
[1740563606647,0.00084314,89471.0,89470.0,0.72873074]
[1740563606959,0.00084314,89471.0,89470.0,0.73558537]
[1740563607161,0.00084314,89471.0,89470.0,1.27191885]
[1740563607420,0.00084314,89471.0,89470.0,1.2864597]
[1740563608211,0.00084314,89471.0,89470.0,1.2934597]
[1740563609414,0.00084314,89471.0,89470.0,1.2864597]
[1740563610014,0.00084314,89471.0,89470.0,1.2794597]
[1740563610189,0.00084314,89471.0,89470.0,1.2864597]
[1740563610804,0.00084314,89471.0,89470.0,1.27891885]
[1740563610977,0.00084314,89471.0,89470.0,1.16517132]
[1740563611198,0.00084314,89471.0,89470.0,1.03611916]
[1740563611440,0.00084314,89471.0,89470.0,1.04311916]
[1740563612017,0.00084314,89471.0,89470.0,1.03611916]
[1740563612274,0.00084314,89471.0,89470.0,1.14986669]
[1740563612588,0.00084314,89471.0,89470.0,1.15686669]
[1740563612999,0.00084314,89471.0,89470.0,1.04311916]
[1740563613336,0.00084314,89471.0,89470.0,1.03611916]
[1740563613536,0.00084314,89471.0,89470.0,1.04311916]
[1740563613890,0.00084314,89471.0,89470.0,0.506713]
[1740563614406,0.00084314,89471.0,89470.0,0.499713]
[1740563614949,0.16849514,89471.0,89470.0,0.33906]
[1740563615270,0.46849514,89471.0,89470.0,0.32506]
[1740563615473,0.46849514,89471.0,89470.0,0.33206]
[1740563615726,0.46849514,89471.0,89470.0,0.33906]
[1740563615918,0.46849514,89471.0,89470.0,0.33206]
[1740563616172,0.46849514,89471.0,89470.0,0.32506]
[1740563616377,0.46849514,89471.0,89470.0,0.33706]
[1740563616525,0.46849514,89471.0,89470.0,0.33006]
[1740563616933,0.46849514,89471.0,89470.0,0.33306]
[1740563618247,0.46849514,89471.0,89470.0,0.32806]
[1740563618456,0.46849514,89471.0,89470.0,0.33006]
[1740563619875,0.00084314,89471.0,89470.0,0.497713]
[1740563620074,0.01837737,89471.0,89470.0,0.497713]
[1740563620482,0.01837737,89471.0,89470.0,0.33006]
[1740563620685,0.01837737,89471.0,89470.0,0.4965602]
[1740563620982,0.01837737,89471.0,89470.0,0.4985602]
[1740563621615,0.01837737,89471.0,89470.0,0.4935602]
[1740563621779,0.01837737,89471.0,89470.0,0.5015602]
[1740563622202,0.01837737,89471.0,89470.0,0.4985602]
[1740563622453,0.01837737,89471.0,89470.0,0.5045602]
[1740563622828,0.00084314,89471.0,89470.0,0.5045602]
[1740563628129,0.06551309,89489.0,89470.0,0.3369072]
[1740563628296,0.3,89480.0,89474.0,0.167645]
[1740563628506,0.3,89480.0,89470.0,0.33697736]
[1740563628679,0.3,89480.0,89476.0,0.167642]
[1740563629065,0.3,89480.0,89477.0,0.167639]
[1740563629262,0.3,89480.0,89476.0,0.167641]
[1740563629469,0.167631,89482.0,89474.0,0.001]
[1740563629669,0.167631,89482.0,89476.0,0.167641]
[1740563629873,0.167631,89482.0,89476.0,0.167642]
[1740563630057,0.167631,89482.0,89474.0,0.001]
[1740563630259,0.167631,89482.0,89476.0,0.167641]
[1740563630500,0.01753274,89485.0,89477.0,0.16764]
[1740563630818,0.3,89484.0,89477.0,0.16764]
[1740563631012,0.167631,89482.0,89477.0,0.16764]
[1740563631186,0.167633,89481.0,89475.0,0.167642]
[1740563631517,0.3,89482.0,89477.0,0.16764]
[1740563631941,0.3,89482.0,89478.0,0.167638]
[1740563632144,0.3,89482.0,89477.0,0.16864]
[1740563632429,0.3004236,89482.0,89478.0,0.167638]
[1740563632653,0.0004236,89482.0,89479.0,0.167636]
[1740563633601,0.0004236,89482.0,89477.0,0.001]
[1740563633807,0.0004236,89482.0,89478.0,0.001]
[1740563633982,0.3,89481.0,89478.0,0.001]
[1740563634187,0.3175327,89481.0,89478.0,0.001]
[1740563634388,0.3175327,89481.0,89478.0,0.168638]
[1740563634589,0.3,89481.0,89479.0,0.167636]
[1740563634999,0.0004236,89482.0,89479.0,0.167636]
[1740563635387,0.3004236,89482.0,89479.0,0.168636]
[1740563635753,0.3004236,89482.0,89479.0,0.167636]
[1740563635892,0.3004236,89482.0,89479.0,0.170636]
[1740563636088,0.3004236,89482.0,89479.0,0.003]
[1740563636494,0.0004236,89482.0,89479.0,0.003]
[1740563636894,0.1680546,89482.0,89479.0,0.003]
[1740563637870,0.0004236,89482.0,89479.0,0.003]
[1740563638071,0.1680546,89482.0,89479.0,0.003]
[1740563638273,0.1680556,89482.0,89479.0,0.003]
[1740563638503,0.0004236,89482.0,89479.0,0.003]
[1740563638703,0.3,89481.0,89479.0,0.003]
[1740563639224,0.31753249,89481.0,89479.0,0.003]
[1740563639880,0.31753249,89481.0,89479.0,0.001]
[1740563640110,0.0004236,89482.0,89479.0,0.003]
[1740563640264,0.01753252,89481.0,89479.0,0.003]
[1740563640667,0.0004236,89482.0,89479.0,0.003]
[1740563641351,0.0004236,89482.0,89479.0,0.002]
[1740563641551,0.0004236,89482.0,89477.0,0.16764]
[1740563641727,0.0004236,89482.0,89479.0,0.001]
[1740563643416,0.1680556,89482.0,89479.0,0.001]
[1740563643622,0.01795609,89482.0,89479.0,0.001]
[1740563644599,0.0004236,89482.0,89479.0,0.001847]
[1740563644804,0.3004236,89482.0,89479.0,0.001847]
[1740563645243,0.4680546,89482.0,89479.0,0.001847]
[1740563645451,0.3004236,89482.0,89479.0,0.001847]
[1740563645673,0.4680556,89482.0,89479.0,0.001847]
[1740563645882,0.0004236,89482.0,89479.0,0.001847]
[1740563646082,0.3004236,89482.0,89479.0,0.001847]
[1740563646287,0.4680556,89482.0,89479.0,0.001847]
[1740563647080,0.3004236,89482.0,89479.0,0.001847]
[1740563647283,0.1680556,89482.0,89479.0,0.001847]
[1740563647656,0.31795611,89482.0,89479.0,0.001847]
[1740563648272,0.48558811,89482.0,89479.0,0.001847]
[1740563648673,0.48558711,89482.0,89479.0,0.001847]
[1740563649090,0.467635,89480.0,89479.0,0.001847]
[1740563650843,0.467635,89480.0,89479.0,0.000847]
[1740563651142,0.467635,89480.0,89479.0,0.001]
[1740563651344,0.546635,89480.0,89479.0,0.003]
[1740563651553,0.546635,89480.0,89437.0,0.0472]
[1740563651554,0.01454085,89468.0,89434.0,0.40116]
[1740563651756,0.0475,89459.0,89439.0,0.00041904]
[1740563651894,0.16771,89440.0,89439.0,0.00041904]
[1740563652488,0.167708,89441.0,89439.0,0.00041904]
[1740563652700,0.22361,89442.0,89439.0,0.00041904]
[1740563652894,0.16771,89440.0,89439.0,0.00041904]
[1740563654465,0.16771,89440.0,89439.0,0.00541904]
[1740563654630,0.16771,89440.0,89439.0,0.01041904]
[1740563655026,0.25957811,89442.0,89439.0,0.01041904]
[1740563655231,0.16771,89440.0,89439.0,0.01041904]
[1740563655630,0.167707,89442.0,89439.0,0.01126604]
[1740563655830,0.3,89447.0,89439.0,0.00626604]
[1740563656151,0.03598633,89447.0,89439.0,0.00626604]
[1740563656351,0.16771,89440.0,89439.0,0.00626604]
[1740563657135,0.48252502,89440.0,89439.0,0.00126604]
[1740563657335,0.46771,89440.0,89439.0,0.00126604]
[1740563657650,0.46771,89440.0,89439.0,0.00426604]
[1740563657853,0.46771,89440.0,89439.0,0.00826604]
[1740563658038,0.46671,89440.0,89439.0,0.00526604]
[1740563658461,0.46671,89440.0,89439.0,0.00126604]
[1740563658657,0.46671,89440.0,89439.0,0.00426604]
[1740563659581,0.46771,89440.0,89439.0,0.00726604]
[1740563659780,0.46771,89440.0,89439.0,0.00826604]
[1740563660824,0.46671,89440.0,89439.0,0.00226604]
[1740563661234,0.3,89441.0,89439.0,0.00426604]
[1740563661441,0.16771,89440.0,89439.0,0.00126604]
[1740563661644,0.16971,89440.0,89439.0,0.00126604]
[1740563661822,0.17071,89440.0,89439.0,0.00126604]
[1740563662027,0.16871,89440.0,89439.0,0.00126604]
[1740563662656,0.16771,89440.0,89439.0,0.00126604]
[1740563663156,0.16971,89440.0,89439.0,0.00126604]
[1740563663917,0.27148304,89440.0,89439.0,0.00126604]
[1740563664112,0.28602389,89440.0,89439.0,0.00126604]
[1740563665056,0.28402389,89440.0,89439.0,0.00126604]
[1740563665504,0.28602389,89440.0,89439.0,0.00126604]